bitfinex-derivatives/quotes_ETHF0:USTF0_20210111
["timestamp","ask_amount","ask_price","bid_price","bid_amount"]
[1610336163470,4.00959,1069.7,1069.2,1.0484433]
[1610336164872,4.00959,1069.7,1069.2,0.0484433]
[1610336165472,4.00959,1069.3,1069.2,0.0484433]
[1610336165972,4.00959,1069.3,1069.2,4.33e-05]
[1610336168572,5.94879,1069.3,1069.2,4.33e-05]
[1610336169576,67.2538,1069.1,1066.5,1.05875586]
[1610336169774,5.94879,1069.3,1066.5,1.05875586]
[1610336169973,53.1235,1068.4,1066.5,1.05875586]
[1610336170572,53.1235,1068.4,1066.4,6.076]
[1610336170973,1.6991,1068.4,1066.4,6.076]
[1610336171174,3.5592,1068.4,1064.5,0.28611086]
[1610336171374,3.5592,1068.4,1064.7,0.28606798]
[1610336171575,3.5592,1068.4,1064.4,1.14427193]
[1610336171775,3.5592,1068.4,1064.7,1.8886]
[1610336173576,4.00959,1065.0,1064.7,1.8886]
[1610336173777,2.4017,1067.8,1064.7,1.8886]
[1610336174577,69.2633,1067.3,1064.7,1.8886]
[1610336174779,71.137,1067.3,1064.0,4.79222764]
[1610336175177,69.2633,1067.3,1064.0,4.79222764]
[1610336175578,4.00959,1064.4,1064.0,4.79222764]
[1610336175977,0.93774,1066.4,1064.0,3.13652764]
[1610336176178,0.93774,1066.4,1064.0,4.81672764]
[1610336176578,0.93774,1066.4,1064.0,4.00672764]
[1610336177179,0.93774,1066.4,1064.0,3.39452764]
[1610336177579,2.4451,1066.1,1063.9,0.00079605]
[1610336177781,1.6353,1065.8,1062.9,0.57276613]
[1610336177985,1.6353,1065.8,1062.7,0.57283614]
[1610336178179,1.6353,1065.8,1062.4,1.43209034]
[1610336178180,1.6353,1065.8,1062.6,0.57287813]
[1610336178381,1.15349,1065.2,1062.6,0.57287813]
[1610336178579,1.15349,1065.2,1062.6,2.46337813]
[1610336178980,1.15349,1065.2,1062.2,63.72279687]
[1610336179383,1.15349,1065.2,1062.3,0.57299452]
[1610336179582,4.00959,1063.1,1062.3,1.6127]
[1610336179781,50.1163,1062.8,1062.7,1.43371044]
[1610336179984,25.8523,1062.8,1062.7,0.99261044]
[1610336180183,25.8523,1062.8,1061.8,0.57319805]
[1610336180384,25.8523,1062.8,1061.5,0.57327329]
[1610336180583,4.00959,1063.1,1061.5,0.57327329]
[1610336180783,4.00959,1063.1,1061.5,2.1389]
[1610336180784,5.90119,1063.1,1061.5,2.1389]
[1610336180983,74.3147,1062.2,1061.5,1.0668]
[1610336181184,62.8742,1062.2,1061.3,0.94338097]
[1610336181384,4.00959,1063.1,1061.3,8.097e-05]
[1610336181584,0.97443,1063.8,1061.3,2.30908097]
[1610336182585,0.97443,1063.8,1061.4,1.43729767]
[1610336182783,0.97443,1063.8,1061.4,0.43729767]
[1610336183384,0.97443,1062.0,1061.4,1.7599]
[1610336183584,4.00959,1061.5,1061.4,3.6427]
[1610336183784,4.00959,1061.5,1059.3,0.28715981]
[1610336183984,6.25199,1061.5,1059.2,4.00959]
[1610336184386,1.5463,1061.5,1059.2,4.00959]
[1610336184587,1.5463,1061.5,1059.2,2.3416]
[1610336184786,75.6553,1061.4,1059.2,4.247]
[1610336184985,50.2998,1061.4,1059.2,4.247]
[1610336185186,50.2998,1061.4,1059.2,2.3416]
[1610336185386,50.2998,1061.4,1059.2,1.356]
[1610336185587,50.2998,1061.4,1059.2,0.7914]
[1610336185988,50.2998,1061.4,1058.6,1.08969353]
[1610336187789,30.0,1061.3,1058.6,3.32619353]
[1610336187988,50.2998,1061.4,1058.6,3.32619353]
[1610336188390,50.2998,1061.4,1058.6,1.14919353]
[1610336188589,50.2998,1061.4,1058.6,0.80619353]
[1610336188790,80.2998,1061.4,1058.6,0.80619353]
[1610336189190,80.2998,1061.4,1056.8,0.28790329]
[1610336189392,82.0532,1061.4,1056.8,0.28790329]
[1610336189589,82.0532,1061.4,1056.6,4.00959]
[1610336189792,77.4099,1060.2,1056.6,5.75389]
[1610336189991,1.7534,1061.4,1056.6,5.75389]
[1610336190190,0.94418,1059.1,1056.6,5.75389]
[1610336191190,0.94418,1057.5,1056.6,5.63009]
[1610336191392,2.1149,1060.5,1056.6,5.63009]
[1610336191791,2.1149,1060.5,1056.6,4.46559]
[1610336191990,11.1149,1060.5,1056.6,1.7443]
[1610336192190,2.4812,1059.6,1056.6,1.7443]
[1610336192590,2.4812,1059.6,1056.0,1.10000609]
[1610336193392,2.4812,1059.6,1053.3,1.11031864]
[1610336193991,0.98009,1057.7,1053.3,1.11031864]
[1610336195192,0.98009,1055.4,1053.3,1.11031864]
[1610336195391,9.0,1058.8,1053.3,1.11031864]
[1610336195592,4.00959,1054.7,1053.3,2.81621864]
[1610336195993,1.05825,1057.3,1053.3,2.81621864]
[1610336196692,2.1145,1059.1,1053.3,2.81621864]
[1610336196892,2.1145,1059.1,1053.3,0.81621864]
[1610336197394,11.1145,1059.1,1053.3,0.81621864]
[1610336197595,1.9058,1058.1,1053.3,0.81621864]
[1610336198196,10.9058,1058.1,1053.3,0.81621864]
[1610336198398,1.9058,1058.1,1053.3,0.81621864]
[1610336199597,5.9937,1058.0,1053.3,0.81621864]
[1610336200599,14.9937,1058.0,1051.4,0.28951355]
[1610336200799,1.9058,1058.1,1051.4,0.28951355]
[1610336201000,6.1194,1058.0,1051.7,0.28950246]
[1610336201700,0.94576,1057.4,1051.4,2.48796294]
[1610336201900,2.3061,1057.4,1051.4,2.48796294]
[1610336202100,2.3061,1057.4,1051.4,2.1984]
[1610336202903,2.3061,1057.4,1051.6,0.28975955]
[1610336203302,2.3061,1057.4,1051.4,2.1984]
[1610336203503,2.3061,1057.4,1051.7,0.28965008]
[1610336203702,6.31569,1057.4,1056.1,4.00959]
[1610336203903,6.31569,1057.4,1056.1,5.56839]
[1610336203904,2.3061,1057.4,1056.1,5.56839]
[1610336204905,76.6105,1058.7,1056.1,5.56839]
[1610336205704,76.6105,1058.7,1056.1,1.5588]
[1610336205705,4.00959,1058.6,1056.1,1.5588]
[1610336205904,6.19219,1058.6,1056.1,1.5588]
[1610336206405,2.1826,1058.6,1056.1,1.5588]
[1610336207007,76.6105,1058.7,1056.1,1.5588]
[1610336207608,76.6105,1058.7,1058.0,4.00959]
[1610336207808,68.9835,1058.7,1058.0,6.05819]
[1610336208010,1.6033,1059.4,1058.0,6.05819]
[1610336208210,6.1559,1061.1,1058.0,6.05819]
[1610336208408,1.44580415,1058.6,1058.0,6.05819]
[1610336208612,6.1559,1061.1,1058.0,6.05819]
[1610336209710,6.1559,1061.1,1060.9,4.00959]
[1610336209911,7.7702,1061.1,1059.5,1.5864]
[1610336210113,1.44502205,1061.0,1059.5,1.5864]
[1610336211715,1.44502205,1061.0,1060.9,4.00959]
[1610336211916,1.44502205,1061.0,1060.9,6.25799]
[1610336212316,1.6705,1062.6,1060.9,6.25799]
[1610336212516,10.60674003,1064.3,1060.9,6.25799]
[1610336212917,10.61509158,1064.5,1060.9,6.25799]
[1610336213121,0.93738,1070.3,1060.9,6.25799]
[1610336213122,10.65473496,1064.7,1060.9,6.25799]
[1610336213318,10.65473496,1064.7,1059.5,1.5864]
[1610336213717,4.00959,1062.9,1062.1,4.00959]
[1610336213918,2.1005,1063.3,1062.1,4.00959]
[1610336214119,2.1005,1063.3,1062.1,6.15529]
[1610336214718,2.1005,1063.3,1062.1,2.1457]
[1610336215722,2.1005,1063.3,1062.9,4.00959]
[1610336216120,1.44197429,1063.2,1062.9,4.00959]
[1610336217125,1.44197429,1063.2,1059.5,1.5864]
[1610336217324,1.44345233,1063.6,1058.0,2.0486]
[1610336217525,1.44345233,1063.6,1056.7,0.28853763]
[1610336217726,4.00959,1062.1,1058.0,1.706]
[1610336217929,1.5468,1062.1,1058.0,1.706]
[1610336218727,1.5468,1062.1,1058.1,1.44384433]
[1610336219728,4.00959,1062.0,1060.9,4.00959]
[1610336220428,5.45428796,1062.0,1060.9,4.00959]
[1610336221129,1.44469796,1062.0,1060.9,4.00959]
[1610336221628,1.44496304,1061.9,1060.9,4.00959]
[1610336221829,1.44496304,1061.9,1061.8,4.00959]
[1610336222630,1.44496304,1061.9,1061.5,1.533]
[1610336223031,1.7086,1062.4,1061.5,1.533]
[1610336223231,1.7086,1062.4,1061.2,2.2603]
[1610336223632,1.44436589,1062.9,1061.2,2.2603]
[1610336223832,1.5171,1062.4,1062.1,4.00959]
[1610336224432,1.44318152,1062.3,1062.1,4.00959]
[1610336225032,2.3071,1063.0,1062.1,4.00959]
[1610336225832,2.3071,1063.0,1062.0,2.5045]
[1610336225833,2.3071,1063.0,1062.9,4.00959]
[1610336226433,6.0343,1064.1,1062.9,4.00959]
[1610336226832,6.0343,1064.1,1062.9,6.00439]
[1610336227332,1.44332081,1064.0,1062.9,6.00439]
[1610336227733,1.44332081,1064.0,1063.9,4.00959]
[1610336228334,11.36063262,1065.5,1063.9,4.00959]
[1610336228739,11.39055314,1066.1,1063.9,4.00959]
[1610336229739,11.37869701,1066.7,1066.0,4.00959]
[1610336230040,11.41959741,1067.0,1062.9,1.9948]
[1610336231146,11.43395504,1067.3,1062.9,1.9948]
[1610336231345,11.4889733,1067.7,1062.9,1.9948]
[1610336231746,11.53979278,1068.2,1067.6,4.00959]
[1610336231946,11.53979278,1068.2,1062.9,2.4272]
[1610336232145,11.57974066,1068.5,1062.9,2.4182]
[1610336232546,9.91271357,1069.3,1062.9,2.4182]
[1610336235752,4.00959,1069.0,1067.3,4.00959]
[1610336235953,6.14319,1069.0,1062.9,2.4182]
[1610336236754,6.14319,1069.0,1063.5,57.1752]
[1610336236955,6.14319,1069.0,1063.5,58.7015]
[1610336237756,4.00959,1067.5,1066.4,4.00959]
[1610336237958,6.39719,1067.5,1066.4,4.00959]
[1610336238355,6.39719,1067.5,1063.5,58.7015]
[1610336239658,6.39719,1067.5,1063.5,57.1752]
[1610336239857,2.3876,1067.5,1064.0,4.00959]
[1610336240658,2.3876,1067.5,1063.5,57.1752]
[1610336241859,2.3876,1067.5,1063.5,9.3291]
[1610336242060,0.97028,1065.9,1058.7,0.2881131]
[1610336242260,6.1036,1065.8,1058.4,0.28816344]
[1610336242760,6.1036,1065.8,1058.7,6.1187]
[1610336242961,6.1036,1065.8,1058.7,8.5332]
[1610336242962,4.00959,1064.0,1058.7,8.5332]
[1610336243161,6.35709,1064.0,1058.7,8.5332]
[1610336243966,4.00959,1062.9,1058.7,8.5332]
[1610336244163,6.23549,1062.9,1058.7,8.5332]
[1610336245864,4.00959,1062.5,1062.2,4.00959]
[1610336246065,5.95559,1062.5,1058.7,8.5332]
[1610336247866,4.00959,1060.9,1058.7,8.5332]
[1610336248066,6.42029,1060.9,1058.7,8.5332]
[1610336248969,0.94291,1060.6,1058.7,8.5332]
[1610336249167,3.18061,1060.6,1058.2,57.0665]
[1610336249369,3.18061,1060.6,1058.2,51.8276]
[1610336249570,0.94291,1059.0,1055.2,6.2238]
[1610336249969,4.00959,1057.3,1055.2,6.2238]
[1610336250771,30.0,1057.2,1055.2,6.2238]
[1610336250970,30.0,1057.2,1053.3,0.28959079]
[1610336251174,31.978,1057.2,1052.8,0.28984317]
[1610336251575,40.978,1057.2,1052.5,6.1577]
[1610336251774,40.978,1057.2,1051.7,0.28994556]
[1610336251974,4.00959,1051.8,1051.4,0.29020774]
[1610336252175,2.0461,1054.8,1050.8,4.00959]
[1610336252373,30.0,1054.7,1050.8,2.1055]
[1610336252575,0.98494,1052.4,1050.8,2.1055]
[1610336252873,39.0,1054.7,1050.8,2.1055]
[1610336253374,39.0,1054.7,1047.7,0.75314082]
[1610336253574,39.0,1054.7,1050.8,1.949]
[1610336253974,4.00959,1050.9,1050.8,1.949]
[1610336254176,4.00959,1050.9,1048.5,0.29064665]
[1610336254575,4.00959,1050.9,1048.1,5.46282325]
[1610336254576,4.00959,1050.9,1048.1,0.29069549]
[1610336254778,4.00959,1050.9,1047.8,6.1601]
[1610336254975,30.0,1050.8,1047.7,0.29088643]
[1610336255175,30.0,1050.8,1047.5,0.29136436]
[1610336255577,67.7627,1049.9,1045.8,0.29145233]
[1610336255776,1.833,1050.8,1045.2,1.7490599]
[1610336255979,4.00959,1047.1,1045.0,4.00959]
[1610336256179,1.5745,1049.6,1045.0,4.00959]
[1610336256381,1.5745,1049.6,1045.0,6.38999]
[1610336256780,1.5745,1049.6,1045.0,2.3804]
[1610336257187,1.5745,1049.6,1043.8,6.4639]
[1610336257379,9.0,1049.6,1043.5,0.29197464]
[1610336257580,30.0,1049.5,1043.7,0.29207998]
[1610336257978,30.0,1049.5,1043.0,0.29200523]
[1610336258179,39.0,1049.5,1043.0,0.29200523]
[1610336258377,39.0,1049.5,1042.8,1.15156887]
[1610336260583,39.0,1049.5,1039.7,1.41273886]
[1610336260782,8.99083561,1048.7,1040.3,0.87849085]
[1610336260982,31.9409,1048.6,1040.3,0.87849085]
[1610336261183,1.5103,1045.9,1040.1,0.87876391]
[1610336261583,1.5103,1045.9,1040.1,2.4598]
[1610336261784,10.5103,1045.9,1040.1,2.4598]
[1610336261984,30.0,1045.8,1040.1,2.4598]
[1610336262184,1.18694,1042.0,1040.1,2.4598]
[1610336262383,1.18694,1042.0,1037.2,4.69121843]
[1610336262583,9.0,1042.0,1036.7,4.69319162]
[1610336262884,9.0,1042.0,1036.6,4.69492905]
[1610336263284,0.9979,1038.8,1036.7,4.69627569]
[1610336263483,9.0,1042.0,1036.7,4.69627569]
[1610336263685,9.0,1042.0,1038.2,0.089]
[1610336263884,30.0,1041.9,1038.2,0.089]
[1610336264085,30.0,1041.9,1034.8,1.18250654]
[1610336264287,30.0,1041.9,1035.2,3.5307581]
[1610336264484,39.0,1041.9,1035.2,5.6255581]
[1610336264686,39.0,1041.9,1035.2,2.0948]
[1610336264886,80.0645,1038.4,1035.2,2.0948]
[1610336265287,40.1309,1038.4,1035.2,2.0948]
[1610336265487,40.1309,1038.4,1034.8,1.18250654]
[1610336265688,31.1309,1038.4,1034.8,1.18250654]
[1610336266088,40.1309,1038.4,1032.2,6.21229222]
[1610336266289,40.1309,1038.4,1034.5,1.17842041]
[1610336266489,40.1309,1038.4,1034.5,2.77272041]
[1610336266689,40.1309,1038.4,1034.5,1.5943]
[1610336266891,40.1309,1038.4,1021.3,166.81340775]
[1610336267091,1.33197,1036.9,1033.6,1.47368798]
[1610336267289,10.33197,1036.9,1033.6,1.47368798]
[1610336267489,9.0,1036.9,1033.6,1.9669]
[1610336267891,9.0,1036.9,1032.6,1.47412404]
[1610336268090,39.0,1036.9,1032.5,1.47425941]
[1610336268291,9.0,1036.9,1032.5,1.47425941]
[1610336268490,9.0,1036.9,1032.0,1.47606707]
[1610336268691,9.0,1036.9,1030.9,2.3324695]
[1610336268891,9.0,1036.9,1031.3,1.47661426]
[1610336269089,9.0,1036.9,1030.9,1.47607498]
[1610336269390,5.99355239,1036.5,1029.8,1.47659031]
[1610336269789,9.0,1036.9,1030.4,1.47784084]
[1610336269989,9.0,1036.5,1030.4,3.72094084]
[1610336270191,9.0,1036.5,1030.4,2.2431]
[1610336270392,67.5279,1033.6,1024.6,55.8298]
[1610336270590,67.5279,1033.6,1025.5,4.75253923]
[1610336270789,76.5279,1033.6,1030.0,0.29564214]
[1610336271091,54.847,1030.5,1030.0,1.5555]
[1610336271493,63.847,1030.5,1030.0,1.5555]
[1610336271691,9.0,1030.5,1030.0,1.5555]
[1610336272093,9.0,1030.5,1028.3,0.44413972]
[1610336272291,9.0,1030.5,1027.1,0.2963552]
[1610336272491,9.0,1030.5,1027.1,2.4878552]
[1610336272691,9.0,1030.0,1027.1,2.1915]
[1610336274292,76.9564,1027.7,1027.1,2.1915]
[1610336274694,9.0,1030.0,1027.1,2.1915]
[1610336274891,0.5,1385.0,1027.1,2.1915]
[1610336274892,9.0,1027.7,1027.1,2.1915]
[1610336275591,9.0,1027.7,1022.8,3.31925903]
[1610336275791,9.0,1027.7,1024.7,0.29711309]
[1610336275990,9.0,1027.7,1024.7,2.16551309]
[1610336276192,62.8384,1027.1,993.54,347.928]
[1610336276391,62.8384,1027.1,993.55,68.519]
[1610336276592,71.8384,1027.1,1023.3,5.50083327]
[1610336276793,71.8384,1027.1,1023.3,1.9351]
[1610336277294,71.8384,1027.1,1016.4,11.88577756]
[1610336277496,71.8384,1027.1,1022.9,3.56820654]
[1610336277695,71.8384,1027.1,1016.0,11.89402181]
[1610336277893,71.8384,1027.1,1023.6,1.18959902]
[1610336278093,71.8384,1027.1,1023.6,2.91869902]
[1610336278493,71.8384,1027.1,1022.8,1.19035819]
[1610336279094,62.8384,1027.1,1022.3,2.75963149]
[1610336279494,62.8384,1027.1,1023.1,1.19004351]
[1610336279694,62.8384,1027.1,1022.1,1.19148193]
[1610336280095,62.8384,1027.1,1021.9,1.19116765]
[1610336280295,71.8384,1027.1,1021.9,1.19116765]
[1610336280498,71.8384,1027.1,1022.3,1.19101721]
[1610336280697,71.8384,1027.1,1022.0,1.19101448]
[1610336281096,71.8384,1027.1,1021.8,1.19152055]
[1610336281395,71.8384,1027.1,1020.9,1.19231866]
[1610336281796,71.8384,1027.1,1021.2,1.19255447]
[1610336282196,71.8384,1027.1,1021.5,1.19345523]
[1610336282596,71.8384,1027.1,1021.1,1.19319637]
[1610336282997,71.8384,1027.1,1021.0,0.5964986]
[1610336283196,71.8384,1027.1,1020.3,0.59694171]
[1610336283396,71.8384,1027.1,1017.8,3.67336343]
[1610336283596,71.8384,1027.1,1019.0,0.59743902]
[1610336283796,9.0,1027.1,1019.0,0.59743902]
[1610336283997,9.0,1027.1,1019.6,0.5976584]
[1610336284197,9.0,1027.3,1019.6,0.5976584]
[1610336284397,64.6664,1022.8,1018.7,0.59789427]
[1610336284597,64.6664,1022.8,1018.8,0.59768221]
[1610336285002,73.6664,1022.8,1015.7,5.97894273]
[1610336285200,64.6664,1022.8,1015.7,5.97894273]
[1610336285500,0.98095,1019.4,1015.0,282.71663697]
[1610336285699,0.98095,1019.4,1018.9,0.59774576]
[1610336285899,0.98095,1015.6,1015.0,282.71663697]
[1610336286100,73.6664,1022.8,1015.0,282.71663697]
[1610336286300,73.6664,1022.8,1018.1,0.59789179]
[1610336286500,73.6664,1022.8,1018.1,0.29912564]
[1610336287302,73.6664,1022.8,1017.7,0.29929021]
[1610336287703,73.6664,1022.8,1016.9,0.29954018]
[1610336288103,73.6664,1022.8,1017.0,0.29927272]
[1610336288303,73.6664,1022.8,1016.4,0.29941837]
[1610336288603,73.6664,1022.8,1016.6,0.29947814]
[1610336288904,73.6664,1022.8,1016.9,0.29941621]
[1610336289204,73.6664,1022.8,1016.2,0.2996362]
[1610336289606,73.6664,1022.8,1016.1,0.29975053]
[1610336290008,4.83806964,1022.1,1015.2,0.29980026]
[1610336290207,4.89524702,1022.7,1015.7,0.30012526]
[1610336290407,9.0,1022.1,1015.7,0.30012526]
[1610336290608,9.0,1022.1,1015.4,0.29989434]
[1610336291009,4.77661372,1022.0,1015.0,271.44744826]
[1610336291410,4.73354743,1021.8,1015.0,271.14757013]
[1610336291609,9.0,1022.0,1015.0,271.14757013]
[1610336291810,9.0,1021.8,1015.0,263.14757013]
[1610336292211,4.91268,1021.7,1015.0,263.14757013]
[1610336292612,4.86318701,1021.5,1015.0,263.14757013]
[1610336293011,13.86318701,1021.5,1015.0,263.14757013]
[1610336293212,62.8013,1018.7,1015.0,263.14757013]
[1610336293613,71.8013,1018.7,1015.0,263.14757013]
[1610336294612,62.8013,1018.7,1015.0,263.14757013]
[1610336294814,77.8805,1016.8,1015.0,263.14757013]
[1610336295013,51.7388,1016.8,1015.0,263.14757013]
[1610336295615,51.7388,1016.8,1015.0,213.14757013]
[1610336295813,51.7388,1016.8,1015.0,168.39637013]
[1610336296014,51.7388,1016.8,1015.0,118.59797013]
[1610336296416,0.98509,1015.2,1015.0,118.59797013]
[1610336296813,43.67559,1016.8,1015.0,118.59797013]
[1610336297016,1.10147,1015.8,1015.0,73.53817013]
[1610336297214,1.10147,1015.8,1015.0,70.02817013]
[1610336297616,1.10147,1015.8,1015.0,46.09327305]
[1610336297817,43.67559,1016.8,1015.0,46.09327305]
[1610336298015,2.5,1359.0,1015.0,41.09327305]
[1610336298016,4.52402882,1020.4,1015.0,41.09327305]
[1610336298216,1.21369,1019.1,1015.0,41.09327305]
[1610336298915,10.21369,1019.1,1015.0,41.09327305]
[1610336299316,10.21369,1019.1,1015.0,36.09327305]
[1610336299516,1.21369,1019.1,1015.0,27.03527305]
[1610336299919,62.8862,1017.0,1015.0,27.03527305]
[1610336300117,4.73928466,1020.7,1015.0,27.03527305]
[1610336300319,9.0,1019.1,1015.0,19.03127305]
[1610336300718,73.1143,1017.8,1015.0,19.03127305]
[1610336300917,4.76012805,1020.9,1015.0,19.03127305]
[1610336301117,0.5,1385.0,1015.0,19.03127305]
[1610336301118,4.72080883,1020.6,1015.0,19.03127305]
[1610336301318,80.6536,1021.1,1015.0,19.03127305]
[1610336301518,80.6536,1021.1,1015.0,14.03127305]
[1610336302120,1.50327909,1020.5,1015.0,14.03127305]
[1610336303421,1.50310944,1021.0,1015.0,14.03127305]
[1610336303621,1.50310944,1021.0,1015.0,9.03127305]
[1610336304321,1.50310944,1021.0,1015.1,0.30021835]
[1610336304522,1.50310944,1021.0,1015.1,78.76111835]
[1610336304722,1.50310944,1021.0,1015.2,0.30035003]
[1610336304922,1.50310944,1021.0,1015.1,79.96307074]
[1610336305626,5.3950578,1022.8,1015.1,79.96307074]
[1610336305627,5.3950578,1022.8,1015.1,1.50217074]
[1610336305827,5.47308113,1023.1,1015.1,1.50217074]
[1610336306227,5.62206349,1024.0,1015.7,0.30008074]
[1610336306427,5.64409576,1024.1,1015.8,0.29991839]
[1610336306730,5.71691055,1024.5,1016.3,0.29983707]
[1610336307128,5.77134746,1024.7,1016.5,0.29988923]
[1610336307526,5.90553363,1025.3,1016.1,0.29978554]
[1610336307527,5.71563145,1024.3,1016.1,0.29978554]
[1610336307727,5.73789487,1024.5,1016.2,0.29983671]
[1610336308127,5.70860167,1024.2,1016.6,75.3026]
[1610336308326,5.70860167,1024.2,1016.2,1.50061528]
[1610336308527,4.43696029,1026.9,1016.2,1.50061528]
[1610336308726,5.9476,1026.8,1016.2,1.50061528]
[1610336309327,6.90263098,1028.7,1017.5,0.29886025]
[1610336309528,6.90263098,1028.7,1015.5,1.77050961]
[1610336309730,6.3505,1028.6,1018.1,0.59896663]
[1610336310130,6.03741815,1026.3,1018.1,0.59896663]
[1610336310330,12.7025,1028.6,1017.9,0.59899409]
[1610336310733,11.0501,1026.3,1018.5,62.0432]
[1610336310933,1.49775571,1026.2,1018.5,62.0432]
[1610336311133,7.91575571,1026.2,1018.5,62.0432]
[1610336312332,1.49671158,1026.1,1018.6,1.49671158]
[1610336312531,1.49671158,1026.1,1019.2,1.01708]
[1610336312932,1.49671158,1026.1,1018.7,0.59817254]
[1610336313134,1.49671158,1026.1,1018.9,0.59822201]
[1610336313334,1.49671158,1026.1,1019.0,0.59828332]
[1610336313835,1.49671158,1026.1,1018.9,0.59830192]
[1610336314234,1.49671158,1026.1,1018.8,1.49639914]
[1610336314936,1.49671158,1026.1,1019.1,1.10068]
[1610336315137,1.49671158,1026.1,1018.8,0.59833564]
[1610336315838,1.49671158,1026.1,1019.1,0.59824918]
[1610336316037,1.49671158,1026.1,1019.4,0.59811317]
[1610336316936,1.49671158,1026.1,1019.3,0.89716976]
[1610336317137,1.49671158,1026.1,1019.2,1.49837536]
[1610336317637,1.49671158,1026.1,1019.3,0.59860914]
[1610336318037,1.49671158,1026.1,1019.1,2.09559342]
[1610336318339,1.49671158,1026.1,1019.2,0.59852796]
[1610336318638,1.49671158,1026.1,1019.3,0.59837076]
[1610336319039,1.49671158,1026.1,1019.1,2.09562722]
[1610336319441,1.49671158,1026.1,1019.5,0.59833128]
[1610336319639,1.49671158,1026.1,1019.9,0.29947463]
[1610336320041,1.49671158,1026.1,1019.7,0.29952844]
[1610336320440,1.49671158,1026.1,1020.3,4.00959]
[1610336320642,1.49671158,1026.1,1020.5,0.29938075]
[1610336320643,4.00959,1023.4,1020.5,0.29938075]
[1610336321041,1.49671158,1026.1,1020.7,0.29919382]
[1610336321239,1.49671158,1026.1,1020.8,70.718]
[1610336321641,1.49671158,1026.1,1020.9,0.29904247]
[1610336322040,1.49653749,1027.1,1020.8,46.78310292]
[1610336322640,1.49653749,1027.1,1020.8,48.41950292]
[1610336323641,7.7287231,1028.8,1020.8,48.41950292]
[1610336324041,0.97126,1028.2,1020.8,48.41950292]
[1610336324242,2.92766,1028.2,1020.8,48.41950292]
[1610336324441,1.9564,1028.2,1020.8,48.41950292]
[1610336324841,1.9564,1028.2,1021.8,2.7094]
[1610336325042,1.49739514,1028.1,1021.8,1.6925]
[1610336325643,0.6,1027.0,1021.8,1.6925]
[1610336325843,2.1978,1027.0,1021.8,1.6925]
[1610336326145,2.1978,1027.0,1022.2,9.9583]
[1610336326342,2.1978,1027.0,1022.2,11.4948]
[1610336326543,1.49536555,1026.9,1022.2,11.4948]
[1610336326944,1.49536555,1026.9,1022.5,0.97803]
[1610336327144,1.49536555,1026.9,1022.5,3.47173]
[1610336327346,1.49536555,1026.9,1022.5,2.4937]
[1610336330052,3.41546555,1026.9,1022.5,4.4419]
[1610336330653,3.41546555,1026.9,1022.6,9.71]
[1610336330851,1.49524368,1026.8,1022.5,4.4419]
[1610336331751,3.42514368,1026.8,1022.5,4.4419]
[1610336332151,3.42514368,1026.8,1022.6,1.49547573]
[1610336333251,1.51724368,1026.9,1026.6,4.00959]
[1610336333451,1.10204368,1027.6,1022.5,2.4937]
[1610336333651,5.04834368,1028.8,1025.2,1.7777]
[1610336333851,3.84034368,1028.8,1025.2,1.7777]
[1610336334454,3.84034368,1028.8,1025.2,3.7491]
[1610336334655,5.78664368,1028.8,1024.0,1.9767]
[1610336334856,5.78664368,1028.8,1024.6,1.6355]
[1610336335054,7.59704368,1028.8,1024.6,1.6355]
[1610336335256,5.50317591,1028.7,1024.6,1.6355]
[1610336336457,7.46717591,1028.7,1024.6,1.6355]
[1610336336660,1.49274293,1028.6,1024.6,1.6355]
[1610336337258,4.00959,1028.5,1027.3,4.00959]
[1610336337459,5.71399,1028.5,1024.6,1.6355]
[1610336337662,1.7044,1028.5,1024.6,1.6355]
[1610336337856,1.7044,1028.5,1025.5,0.97516]
[1610336338059,1.5146,1028.5,1025.5,0.97516]
[1610336338258,1.5146,1028.5,1025.5,2.1829]
[1610336339260,4.00959,1028.3,1027.5,4.00959]
[1610336339470,4.00959,1028.3,1025.5,2.1829]
[1610336339961,1.5146,1028.5,1025.5,2.1829]
[1610336340762,69.4565,1030.2,1025.5,2.1829]
[1610336341363,4.00959,1027.8,1025.5,2.1829]
[1610336341764,5.98209,1027.8,1025.5,2.1829]
[1610336342164,5.98209,1027.8,1025.5,0.1829]
[1610336342969,8.38759,1027.8,1025.5,2.1157]
[1610336343170,8.38759,1027.8,1025.5,1.9328]
[1610336343368,5.68799,1025.6,1025.0,73.5039]
[1610336344169,5.68799,1025.6,1024.5,1.9262]
[1610336344371,5.68799,1025.6,1023.4,2.4606]
[1610336344571,7.65819,1025.6,1022.1,78.48869148]
[1610336344975,7.65819,1025.6,1022.1,78.1896]
[1610336345269,4.00959,1022.9,1022.1,78.1896]
[1610336345470,4.00959,1022.9,1022.1,54.25470292]
[1610336345671,4.00959,1022.9,1021.8,6.5391]
[1610336346473,5.94009,1022.9,1021.6,4.00959]
[1610336346876,4.00959,1022.9,1021.6,4.00959]
[1610336347473,7.28209,1028.5,1021.4,0.29937978]
[1610336347674,7.28209,1028.5,1021.4,2.1088]
[1610336347873,6.66119124,1029.9,1021.5,6.275]
[1610336348071,6.66119124,1029.9,1021.7,1.49713832]
[1610336348272,2.1813,1029.9,1021.7,1.49713832]
[1610336348470,2.1813,1029.9,1021.7,3.44193832]
[1610336348872,2.1813,1029.9,1021.7,3.74123109]
[1610336349071,4.1424,1029.9,1021.7,3.74123109]
[1610336349271,9.0,1029.3,1021.7,3.44193832]
[1610336349473,1.00895,1027.4,1021.7,5.41523832]
[1610336349671,3.14425,1027.4,1021.8,1.49743819]
[1610336350071,3.14425,1027.4,1021.8,7.62743819]
[1610336350672,5.09545,1027.4,1021.8,7.62743819]
[1610336350872,5.09545,1027.4,1021.8,6.13]
[1610336351472,4.0865,1027.4,1021.8,6.13]
[1610336354076,2.1353,1027.4,1021.8,6.13]
[1610336354675,75.7806,1028.4,1021.8,6.13]
[1610336354875,6.46658834,1029.8,1021.8,6.13]